Workbook

Sheet Общая по фамилиям
A1: Name | B1: АРС 15 | C1: АРС 16 | D1: АРС 17 | E1: АРС 18 | F1: АРС 19 | G1: АРС 20 | H1: Сумма билетов
A2: Abakumov Roman | F2: 8 | H2: =E2+B2+C2+D2+F2+G2 -> 8
A3: Abaluev Andrey | E3: 5 | H3: =E3+B3+C3+D3+F3+G3 -> 5
A4: Abaluev Anton | E4: 5 | H4: =E4+B4+C4+D4+F4+G4 -> 5
A5: Aberkhaev Nail | G5: 17 | H5: =E5+B5+C5+D5+F5+G5 -> 17
A6: Abishev Roman | D6: 6 | E6: 5 | G6: 12 | H6: =E6+B6+C6+D6+F6+G6 -> 23
A7: Abrahamyan Arman | F7: 16 | H7: =E7+B7+C7+D7+F7+G7 -> 16
A8: Abramenkov Sergey | B8: 4 | C8: 0 | E8: 11 | H8: =E8+B8+C8+D8+F8+G8 -> 15
A9: Abramov Aleksandr | E9: 5 | H9: =E9+B9+C9+D9+F9+G9 -> 5
A10: Abramov Roman | D10: 1 | H10: =E10+B10+C10+D10+F10+G10 -> 1
A11: Abramovas Aleksandras | B11: 2 | C11: 0 | D11: 4 | F11: 1 | H11: =E11+B11+C11+D11+F11+G11 -> 7
A12: Adamovich Aleksey | B12: 2 | C12: 2 | D12: 2 | E12: 1 | H12: =E12+B12+C12+D12+F12+G12 -> 7
A13: Adamovich Denis | B13: 3 | C13: 0 | D13: 2 | H13: =E13+B13+C13+D13+F13+G13 -> 5
A14: Adelberg Artur | B14: 14 | C14: 0 | D14: 7 | E14: 8 | H14: =E14+B14+C14+D14+F14+G14 -> 29
A15: Admaykin Aleksandr | F15: 6 | H15: =E15+B15+C15+D15+F15+G15 -> 6
A16: Afanasyev Aleksey | B16: 0 | C16: 11 | H16: =E16+B16+C16+D16+F16+G16 -> 11
A17: Afanasyev Igor | E17: 13 | G17: 7 | H17: =E17+B17+C17+D17+F17+G17 -> 20
A18: Agabaev Arslan | B18: 8 | C18: 0 | E18: 9 | F18: 21 | G18: 14 | H18: =E18+B18+C18+D18+F18+G18 -> 52
A19: Agaev Emil | E19: 1 | H19: =E19+B19+C19+D19+F19+G19 -> 1
A20: Agafonov Aleksey | D20: 3 | E20: 2 | H20: =E20+B20+C20+D20+F20+G20 -> 5
A21: Agasarov Roman | B21: 0 | C21: 4 | D21: 4 | E21: 6 | F21: 4 | G21: 5 | H21: =E21+B21+C21+D21+F21+G21 -> 23
A22: Ageeva Anastasiya | E22: 3 | H22: =E22+B22+C22+D22+F22+G22 -> 3
A23: Aglyamov Radik | B23: 0 | C23: 7 | H23: =E23+B23+C23+D23+F23+G23 -> 7
A24: Aistov Maksim | D24: 1 | H24: =E24+B24+C24+D24+F24+G24 -> 1
A25: Akimov Dmitriy | B25: 0 | C25: 5 | F25: 4 | H25: =E25+B25+C25+D25+F25+G25 -> 9
A26: Akulov Dmitriy | B26: 3 | C26: 2 | D26: 7 | E26: 2 | H26: =E26+B26+C26+D26+F26+G26 -> 14
A27: Albitskiy Sergey | B27: 23 | C27: 7 | D27: 16 | G27: 6 | H27: =E27+B27+C27+D27+F27+G27 -> 52
A28: Alborov Roman | D28: 1 | H28: =E28+B28+C28+D28+F28+G28 -> 1
A29: Alekseev Gennadiy | F29: 1 | H29: =E29+B29+C29+D29+F29+G29 -> 1
A30: Alekseev Igor | D30: 3 | H30: =E30+B30+C30+D30+F30+G30 -> 3
A31: Alekseeva Anna | D31: 1 | H31: =E31+B31+C31+D31+F31+G31 -> 1
A32: Aleshin Aleksandr | G32: 6 | H32: =E32+B32+C32+D32+F32+G32 -> 6
A33: Aleynik Konstantin | D33: 1 | F33: 1 | H33: =E33+B33+C33+D33+F33+G33 -> 2
A34: Alieva Luana | B34: 4 | C34: 1 | H34: =E34+B34+C34+D34+F34+G34 -> 5
A35: Alikulov Artem | E35: 5 | H35: =E35+B35+C35+D35+F35+G35 -> 5
A36: Altukhov Igor | B36: 0 | C36: 3 | H36: =E36+B36+C36+D36+F36+G36 -> 3
A37: Altynikov Roman | B37: 0 | C37: 7 | E37: 9 | G37: 10 | H37: =E37+B37+C37+D37+F37+G37 -> 26
A38: Alymov Daniil | D38: 1 | H38: =E38+B38+C38+D38+F38+G38 -> 1
A39: Alzhanov Azamat | B39: 0 | C39: 1 | D39: 4 | H39: =E39+B39+C39+D39+F39+G39 -> 5
A40: Amelchenko Roman | G40: 2 | H40: =E40+B40+C40+D40+F40+G40 -> 2
A41: Ananova Anna | B41: 4 | C41: 23 | D41: 11 | F41: 15 | H41: =E41+B41+C41+D41+F41+G41 -> 53
A42: Andreev Dmitriy 1042853 | B42: 0 | C42: 9 | G42: 13 | H42: =E42+B42+C42+D42+F42+G42 -> 22
A43: Andreev Vadim | B43: 1 | C43: 3 | H43: =E43+B43+C43+D43+F43+G43 -> 4
A44: Andrianovskaya Anna | B44: 0 | C44: 1 | H44: =E44+B44+C44+D44+F44+G44 -> 1
A45: Anisimov Aleksey | B45: 10 | C45: 0 | H45: =E45+B45+C45+D45+F45+G45 -> 10
A46: Antipova Erika | B46: 0 | C46: 1 | H46: =E46+B46+C46+D46+F46+G46 -> 1
A47: Antokhin Aleksey | B47: 4 | C47: 2 | D47: 4 | E47: 2 | G47: 1 | H47: =E47+B47+C47+D47+F47+G47 -> 13
A48: Antonov Ivan | D48: 4 | F48: 2 | H48: =E48+B48+C48+D48+F48+G48 -> 6
A49: Antropov Akim | B49: 0 | C49: 3 | D49: 6 | E49: 6 | H49: =E49+B49+C49+D49+F49+G49 -> 15
A50: Antufyev Andrey | B50: 0 | C50: 1 | D50: 1 | F50: 2 | G50: 1 | H50: =E50+B50+C50+D50+F50+G50 -> 5
A51: Aratsev Daniil | B51: 0 | C51: 13 | H51: =E51+B51+C51+D51+F51+G51 -> 13
A52: Aristov Aleksey | B52: 0 | C52: 1 | H52: =E52+B52+C52+D52+F52+G52 -> 1
A53: Arkhipova Elizaveta | B53: 0 | C53: 1 | H53: =E53+B53+C53+D53+F53+G53 -> 1
A54: Arsenenko Denis | B54: 0 | C54: 2 | D54: 10 | G54: 3 | H54: =E54+B54+C54+D54+F54+G54 -> 15
A55: Arshin Mikhail | E55: 5 | H55: =E55+B55+C55+D55+F55+G55 -> 5
A56: Artemenko Artem | D56: 3 | H56: =E56+B56+C56+D56+F56+G56 -> 3
A57: Artemeva Anastasiya | G57: 1 | H57: =E57+B57+C57+D57+F57+G57 -> 1
A58: Aseeva Vera | B58: 0 | C58: 2 | G58: 2 | H58: =E58+B58+C58+D58+F58+G58 -> 4
A59: Ashimov Bauyrzhan | E59: 8 | H59: =E59+B59+C59+D59+F59+G59 -> 8
A60: Ashimov Bauyrzhan | D60: 5 | H60: =E60+B60+C60+D60+F60+G60 -> 5
A61: Ataksheev Danila | B61: 0 | C61: 1 | D61: 1 | F61: 1 | H61: =E61+B61+C61+D61+F61+G61 -> 3
A62: Avanesian Vazgen | B62: 8 | C62: 0 | G62: 8 | H62: =E62+B62+C62+D62+F62+G62 -> 16
A63: Avanesyan Artem | B63: 5 | C63: 0 | H63: =E63+B63+C63+D63+F63+G63 -> 5
A64: Avanesyan Valeriy | E64: 5 | G64: 11 | H64: =E64+B64+C64+D64+F64+G64 -> 16
A65: Avanesyan Vitaliy | G65: 3 | H65: =E65+B65+C65+D65+F65+G65 -> 3
A66: Avdunin Kirill | B66: 0 | C66: 12 | H66: =E66+B66+C66+D66+F66+G66 -> 12
A67: Avramenko Denis | F67: 4 | H67: =E67+B67+C67+D67+F67+G67 -> 4
A68: Ayupov Artur | B68: 6 | C68: 0 | E68: 1 | F68: 6 | G68: 1 | H68: =E68+B68+C68+D68+F68+G68 -> 14
A69: Azaryan Aleksandr | B69: 0 | C69: 14 | D69: 15 | E69: 15 | F69: 8 | G69: 20 | H69: =E69+B69+C69+D69+F69+G69 -> 72
A70: Azhmaganbetov Timur | B70: 0 | C70: 7 | E70: 7 | H70: =E70+B70+C70+D70+F70+G70 -> 14
A71: Baaziz Mario | B71: 0 | C71: 4 | H71: =E71+B71+C71+D71+F71+G71 -> 4
A72: Babiy Diana | B72: 0 | C72: 1 | D72: 1 | G72: 1 | H72: =E72+B72+C72+D72+F72+G72 -> 3
A73: Babushkin Nikolay | B73: 0 | C73: 21 | D73: 6 | H73: =E73+B73+C73+D73+F73+G73 -> 27
A74: Badrutdinov Ruslan | B74: 10 | C74: 0 | H74: =E74+B74+C74+D74+F74+G74 -> 10
A75: Bagiryan Roman | G75: 1 | H75: =E75+B75+C75+D75+F75+G75 -> 1
A76: Bagritsevich Evgeniy | D76: 1 | H76: =E76+B76+C76+D76+F76+G76 -> 1
A77: Bakhrov Konstantin | B77: 0 | C77: 2 | H77: =E77+B77+C77+D77+F77+G77 -> 2
A78: Bakhta Stanislav | B78: 9 | C78: 0 | G78: 8 | H78: =E78+B78+C78+D78+F78+G78 -> 17
A79: Balobanov Konstantin | B79: 3 | C79: 0 | H79: =E79+B79+C79+D79+F79+G79 -> 3
A80: Barannikov Ilya | B80: 0 | C80: 26 | D80: 18 | E80: 24 | F80: 16 | G80: 19 | H80: =E80+B80+C80+D80+F80+G80 -> 103
A81: Baranov Mikhail | G81: 7 | H81: =E81+B81+C81+D81+F81+G81 -> 7
A82: Barinov Danil | G82: 9 | H82: =E82+B82+C82+D82+F82+G82 -> 9
A83: Bartysh Bogdan | B83: 0 | C83: 14 | H83: =E83+B83+C83+D83+F83+G83 -> 14
A84: Baryshnikov Roman | E84: 4 | H84: =E84+B84+C84+D84+F84+G84 -> 4
A85: Bashkirov Danila | E85: 8 | G85: 5 | H85: =E85+B85+C85+D85+F85+G85 -> 13
A86: Baturevich Mikhail | E86: 6 | H86: =E86+B86+C86+D86+F86+G86 -> 6
A87: Bayandina Yulia | B87: 0 | C87: 12 | E87: 4 | F87: 4 | H87: =E87+B87+C87+D87+F87+G87 -> 20
A88: Bayburin Artur | F88: 4 | H88: =E88+B88+C88+D88+F88+G88 -> 4
A89: Bayramov Azer | B89: 0 | C89: 17 | D89: 26 | H89: =E89+B89+C89+D89+F89+G89 -> 43
A90: Bazikalo Oleg | F90: 2 | H90: =E90+B90+C90+D90+F90+G90 -> 2
A91: Bedareva Ksenia | B91: 2 | C91: 0 | H91: =E91+B91+C91+D91+F91+G91 -> 2
A92: Bedzhanyan Alla | B92: 1 | C92: 0 | H92: =E92+B92+C92+D92+F92+G92 -> 1
A93: Bedzhanyan Levon | B93: 22 | C93: 0 | D93: 15 | E93: 1 | F93: 3 | G93: 14 | H93: =E93+B93+C93+D93+F93+G93 -> 55
A94: Belenkov Maksim | F94: 1 | H94: =E94+B94+C94+D94+F94+G94 -> 1
A95: Belikov Dmitriy | B95: 18 | C95: 15 | D95: 14 | H95: =E95+B95+C95+D95+F95+G95 -> 47
A96: Belinskiy Artem | B96: 0 | C96: 9 | D96: 13 | H96: =E96+B96+C96+D96+F96+G96 -> 22
A97: Beliy Aleksandr | B97: 0 | C97: 7 | H97: =E97+B97+C97+D97+F97+G97 -> 7
A98: Belousov Andrey | B98: 7 | C98: 0 | H98: =E98+B98+C98+D98+F98+G98 -> 7
A99: Belozertsev Valeriy | B99: 3 | C99: 0 | D99: 2 | F99: 2 | G99: 1 | H99: =E99+B99+C99+D99+F99+G99 -> 8
A100: Belyaev Artem | B100: 0 | C100: 6 | H100: =E100+B100+C100+D100+F100+G100 -> 6
A101: Belyaeva Rimma | B101: 5 | C101: 6 | D101: 5 | F101: 4 | G101: 7 | H101: =E101+B101+C101+D101+F101+G101 -> 27
A102: Belyavskiy Evgeniy | B102: 12 | C102: 30 | D102: 39 | E102: 40 | F102: 24 | H102: =E102+B102+C102+D102+F102+G102 -> 145
A103: Berdyshev Evgeniy | B103: 1 | C103: 0 | D103: 2 | E103: 3 | F103: 1 | G103: 2 | H103: =E103+B103+C103+D103+F103+G103 -> 9
A104: Berenbeyn Aleksandr | B104: 8 | C104: 9 | D104: 14 | E104: 25 | H104: =E104+B104+C104+D104+F104+G104 -> 56
A105: Berestyukov Pavel | G105: 2 | H105: =E105+B105+C105+D105+F105+G105 -> 2
A106: Berezovoy Aleksandr | B106: 0 | C106: 6 | G106: 5 | H106: =E106+B106+C106+D106+F106+G106 -> 11
A107: Berg Daria | D107: 7 | H107: =E107+B107+C107+D107+F107+G107 -> 7
A108: Berg Maksim | B108: 0 | C108: 17 | D108: 12 | E108: 8 | H108: =E108+B108+C108+D108+F108+G108 -> 37
A109: Berlin Sergey | B109: 0 | C109: 8 | H109: =E109+B109+C109+D109+F109+G109 -> 8
A110: Besidskaya Irina | G110: 1 | H110: =E110+B110+C110+D110+F110+G110 -> 1
A111: Bezotosniy Viktor | B111: 0 | C111: 16 | D111: 9 | F111: 21 | H111: =E111+B111+C111+D111+F111+G111 -> 46
A112: Bezuglov Andrey | E112: 5 | H112: =E112+B112+C112+D112+F112+G112 -> 5
A113: Bikeev Talgat | B113: 16 | C113: 18 | D113: 20 | G113: 5 | H113: =E113+B113+C113+D113+F113+G113 -> 59
A114: Biriukov Aleksandr | B114: 9 | C114: 7 | F114: 11 | H114: =E114+B114+C114+D114+F114+G114 -> 27
A115: Blazhchishyn Stanislav | E115: 1 | G115: 7 | H115: =E115+B115+C115+D115+F115+G115 -> 8
A116: Bobkov Evgeniy | G116: 1 | H116: =E116+B116+C116+D116+F116+G116 -> 1
A117: Boeva Anastasiya | B117: 0 | C117: 1 | H117: =E117+B117+C117+D117+F117+G117 -> 1
A118: Bogachev Andrey | G118: 8 | H118: =E118+B118+C118+D118+F118+G118 -> 8
A119: Bogdanov Andrey | F119: 10 | H119: =E119+B119+C119+D119+F119+G119 -> 10
A120: Bogdanovskiy Aleksandr | D120: 1 | H120: =E120+B120+C120+D120+F120+G120 -> 1
A121: Bolbas Viktor | B121: 8 | C121: 0 | H121: =E121+B121+C121+D121+F121+G121 -> 8
A122: Bolbas Viktor_2 | B122: 2 | C122: 0 | H122: =E122+B122+C122+D122+F122+G122 -> 2
A123: Bolev Sergey | B123: 0 | C123: 7 | G123: 11 | H123: =E123+B123+C123+D123+F123+G123 -> 18
A124: Bolshakova Olesya | D124: 1 | H124: =E124+B124+C124+D124+F124+G124 -> 1
A125: Bondar Ilya | B125: 0 | C125: 1 | H125: =E125+B125+C125+D125+F125+G125 -> 1
A126: Bondarchuk Aleksandr | B126: 0 | C126: 1 | H126: =E126+B126+C126+D126+F126+G126 -> 1
A127: Bondarev Aleksandr | B127: 3 | C127: 0 | F127: 2 | H127: =E127+B127+C127+D127+F127+G127 -> 5
A128: Bondarev Anton | G128: 2 | H128: =E128+B128+C128+D128+F128+G128 -> 2
A129: Boretskiy Maksim | B129: 4 | C129: 0 | H129: =E129+B129+C129+D129+F129+G129 -> 4
A130: Borisov Aleksandr | E130: 5 | G130: 2 | H130: =E130+B130+C130+D130+F130+G130 -> 7
A131: Borisov Nikolay | B131: 10 | C131: 12 | H131: =E131+B131+C131+D131+F131+G131 -> 22
A132: Borisov Vladislav | G132: 1 | H132: =E132+B132+C132+D132+F132+G132 -> 1
A133: Borov Anzor | B133: 3 | C133: 0 | H133: =E133+B133+C133+D133+F133+G133 -> 3
A134: Botvinnik Igor | E134: 3 | F134: 2 | H134: =E134+B134+C134+D134+F134+G134 -> 5
A135: Bovaev Elvig | B135: 2 | C135: 1 | E135: 13 | G135: 3 | H135: =E135+B135+C135+D135+F135+G135 -> 19
A136: Boyazitov Ramil | B136: 31 | C136: 0 | H136: =E136+B136+C136+D136+F136+G136 -> 31
A137: Boyko Aleksey | B137: 1 | C137: 0 | H137: =E137+B137+C137+D137+F137+G137 -> 1
A138: Boytler Kirill | B138: 0 | C138: 7 | H138: =E138+B138+C138+D138+F138+G138 -> 7
A139: Bozhich Andrey | B139: 4 | C139: 0 | H139: =E139+B139+C139+D139+F139+G139 -> 4
A140: Budarina Tatyana | B140: 0 | C140: 1 | H140: =E140+B140+C140+D140+F140+G140 -> 1
A141: Budenchuk Vladimir | E141: 8 | H141: =E141+B141+C141+D141+F141+G141 -> 8
A142: Bukharov German | D142: 6 | H142: =E142+B142+C142+D142+F142+G142 -> 6
A143: Bukhner Mikhail | G143: 2 | H143: =E143+B143+C143+D143+F143+G143 -> 2
A144: Bulatov Artem | B144: 11 | C144: 13 | D144: 7 | E144: 9 | F144: 1 | G144: 4 | H144: =E144+B144+C144+D144+F144+G144 -> 45
A145: Buldakov Nikolay | B145: 0 | C145: 4 | H145: =E145+B145+C145+D145+F145+G145 -> 4
A146: Bulgakov Vladimir | B146: 5 | C146: 0 | H146: =E146+B146+C146+D146+F146+G146 -> 5
A147: Butakov Denis | G147: 7 | H147: =E147+B147+C147+D147+F147+G147 -> 7
A148: Buyankina Marina | B148: 1 | C148: 2 | D148: 1 | E148: 1 | F148: 1 | H148: =E148+B148+C148+D148+F148+G148 -> 6
A149: Bystrov Maksim | B149: 0 | C149: 7 | G149: 17 | H149: =E149+B149+C149+D149+F149+G149 -> 24
A150: Chashchin Igor | B150: 0 | C150: 7 | H150: =E150+B150+C150+D150+F150+G150 -> 7
A151: Chelpanov Aleksey | B151: 1 | C151: 0 | H151: =E151+B151+C151+D151+F151+G151 -> 1
A152: Cheltsov Anton | B152: 5 | C152: 0 | H152: =E152+B152+C152+D152+F152+G152 -> 5
A153: Chemeris Viktor | D153: 1 | H153: =E153+B153+C153+D153+F153+G153 -> 1
A154: Chepkasov Dmitriy | B154: 0 | C154: 1 | H154: =E154+B154+C154+D154+F154+G154 -> 1
A155: Cherkashin Andrey | B155: 30 | C155: 18 | D155: 22 | E155: 16 | F155: 20 | G155: 9 | H155: =E155+B155+C155+D155+F155+G155 -> 115
A156: Cherkasov Grigoriy | B156: 1 | C156: 0 | H156: =E156+B156+C156+D156+F156+G156 -> 1
A157: Chernyi Roman | B157: 2 | C157: 1 | H157: =E157+B157+C157+D157+F157+G157 -> 3
A158: Chernyshov Pavel | G158: 10 | H158: =E158+B158+C158+D158+F158+G158 -> 10
A159: Chershnev Sergey | D159: 3 | H159: =E159+B159+C159+D159+F159+G159 -> 3
A160: Chikislov Igor | E160: 6 | H160: =E160+B160+C160+D160+F160+G160 -> 6
A161: Chipushtanov Aleksey | G161: 8 | H161: =E161+B161+C161+D161+F161+G161 -> 8
A162: Chistyakov Konstantin | B162: 1 | C162: 1 | H162: =E162+B162+C162+D162+F162+G162 -> 2
A163: Cholokyan Andronik | B163: 8 | C163: 7 | H163: =E163+B163+C163+D163+F163+G163 -> 15
A164: Chop Dmitriy | D164: 17 | E164: 24 | H164: =E164+B164+C164+D164+F164+G164 -> 41
A165: Chumakov Sergey | E165: 6 | F165: 3 | G165: 4 | H165: =E165+B165+C165+D165+F165+G165 -> 13
A166: Churikov Mikhail | B166: 0 | C166: 8 | H166: =E166+B166+C166+D166+F166+G166 -> 8
A167: Chuvilin Denis | E167: 7 | F167: 1 | G167: 4 | H167: =E167+B167+C167+D167+F167+G167 -> 12
A168: Chvilev Aleksey | D168: 5 | E168: 11 | F168: 23 | G168: 9 | H168: =E168+B168+C168+D168+F168+G168 -> 48
A169: Danilevich Yaroslav | G169: 1 | H169: =E169+B169+C169+D169+F169+G169 -> 1
A170: Danilov Konstantin | B170: 14 | C170: 0 | H170: =E170+B170+C170+D170+F170+G170 -> 14
A171: Danilushkin Aleksey | E171: 2 | H171: =E171+B171+C171+D171+F171+G171 -> 2
A172: Daurova Zalina | G172: 2 | H172: =E172+B172+C172+D172+F172+G172 -> 2
A173: Davoyan Franchesko | D173: 16 | H173: =E173+B173+C173+D173+F173+G173 -> 16
A174: Davydov Aleksandr | F174: 21 | G174: 8 | H174: =E174+B174+C174+D174+F174+G174 -> 29
A175: Davydov Armen | B175: 10 | C175: 9 | D175: 3 | G175: 11 | H175: =E175+B175+C175+D175+F175+G175 -> 33
A176: Davydov Dmitriy | D176: 7 | E176: 8 | G176: 5 | H176: =E176+B176+C176+D176+F176+G176 -> 20
A177: Dayneko Artem | B177: 22 | C177: 37 | E177: 28 | H177: =E177+B177+C177+D177+F177+G177 -> 87
A178: Dedelov Fedor | B178: 24 | C178: 38 | E178: 23 | H178: =E178+B178+C178+D178+F178+G178 -> 85
A179: Demb Valentin | D179: 3 | H179: =E179+B179+C179+D179+F179+G179 -> 3
A180: Demenkov Vladimir | B180: 0 | C180: 20 | E180: 1 | H180: =E180+B180+C180+D180+F180+G180 -> 21
A181: Demenkov Vladimir | D181: 4 | H181: =E181+B181+C181+D181+F181+G181 -> 4
A182: Demin Dmitriy | E182: 3 | G182: 1 | H182: =E182+B182+C182+D182+F182+G182 -> 4
A183: Demin Evgeniy_1986 | B183: 4 | C183: 0 | H183: =E183+B183+C183+D183+F183+G183 -> 4
A184: Demonov Sergey | B184: 6 | C184: 12 | D184: 8 | E184: 2 | F184: 7 | H184: =E184+B184+C184+D184+F184+G184 -> 35
A185: Deniskina Victoriya | D185: 1 | H185: =E185+B185+C185+D185+F185+G185 -> 1
A186: Denisov Pavel | B186: 11 | C186: 7 | D186: 14 | F186: 8 | G186: 3 | H186: =E186+B186+C186+D186+F186+G186 -> 43
A187: Derbyshev Vyacheslav | B187: 0 | C187: 14 | D187: 13 | E187: 17 | G187: 11 | H187: =E187+B187+C187+D187+F187+G187 -> 55
A188: Dergachev Nikita | B188: 0 | C188: 18 | G188: 12 | H188: =E188+B188+C188+D188+F188+G188 -> 30
A189: Deripalko Mariya | B189: 0 | C189: 1 | H189: =E189+B189+C189+D189+F189+G189 -> 1
A190: Devyatkina Olga | B190: 0 | C190: 3 | H190: =E190+B190+C190+D190+F190+G190 -> 3
A191: Dmitriyev Aleksandr | B191: 19 | C191: 0 | H191: =E191+B191+C191+D191+F191+G191 -> 19
A192: Dokshin Vyacheslav | G192: 7 | H192: =E192+B192+C192+D192+F192+G192 -> 7
A193: Dolgikh Daniel | F193: 1 | H193: =E193+B193+C193+D193+F193+G193 -> 1
A194: Domrachev Andrey | F194: 24 | G194: 14 | H194: =E194+B194+C194+D194+F194+G194 -> 38
A195: Donets Aleksey | B195: 33 | C195: 30 | D195: 23 | E195: 3 | F195: 28 | H195: =E195+B195+C195+D195+F195+G195 -> 117
A196: Dorel Iliya | G196: 15 | H196: =E196+B196+C196+D196+F196+G196 -> 15
A197: Doronin Maksim | B197: 3 | C197: 0 | H197: =E197+B197+C197+D197+F197+G197 -> 3
A198: Dorozhkin Sergey | E198: 3 | F198: 18 | G198: 20 | H198: =E198+B198+C198+D198+F198+G198 -> 41
A199: Doshchanov Aman | D199: 18 | E199: 31 | F199: 29 | G199: 28 | H199: =E199+B199+C199+D199+F199+G199 -> 106
A200: Dosikov Ilyaz | E200: 1 | H200: =E200+B200+C200+D200+F200+G200 -> 1
... 959 more rows

Sheet общее кол-во билетов
A1: Name | B1: Общее кол-во билетов
A2: Sayapin Yuriy | B2: 162
A3: Konovalov Sergey | B3: 151
A4: Belyavskiy Evgeniy | B4: 145
A5: Zhelezniak Ruslan | B5: 130
A6: Funikov Viktor | B6: 126
A7: Donets Aleksey | B7: 117
A8: Cherkashin Andrey | B8: 115
A9: Ovcharov Vladimir | B9: 114
A10: Voropaev Aleksandr | B10: 109
A11: Doshchanov Aman | B11: 106
A12: Lavrikov Sergey | B12: 106
A13: Barannikov Ilya | B13: 103
A14: Sagaev Denis | B14: 97
A15: Vdovenko Evgeniy | B15: 96
A16: Nabiev Afis | B16: 93
A17: Ksendzovskiy Ilia | B17: 90
A18: Mediukha Evgeniy | B18: 90
A19: Dayneko Artem | B19: 87
A20: Dedelov Fedor | B20: 85
A21: Li Vitaliy | B21: 85
A22: Kolotyuk Roman | B22: 84
A23: Izmaylov Igor | B23: 77
A24: Shubin Andrey | B24: 77
A25: Nesiev Ruslan | B25: 76
A26: Khachatryan Armen | B26: 75
A27: Olle Aleksey | B27: 75
A28: Shabalin Ilya | B28: 75
A29: Kress Igor | B29: 73
A30: Nikolenko Aleksey | B30: 73
A31: Vaganian Vage | B31: 73
A32: Azaryan Aleksandr | B32: 72
A33: Shelever Vitaliy | B33: 71
A34: Fokin Valeriy | B34: 70
A35: Miroshnichenko Evgeny | B35: 68
A36: Stepanov Arkadiy | B36: 68
A37: Kazbekov Boris | B37: 65
A38: Dubeyko Mikhail | B38: 64
A39: Firfarov Dmitriy | B39: 63
A40: Stoyka Roman | B40: 62
A41: Fedchenko Mikhail | B41: 61
A42: Khokhlov Sergey | B42: 61
A43: Kozhevnikov Igor | B43: 61
A44: Pavlenko Aleksey | B44: 61
A45: Rogov Maksim | B45: 60
A46: Bikeev Talgat | B46: 59
A47: Konovalov Nikita | B47: 58
A48: Korchagin Evgeniy | B48: 58
A49: Mikhalev Aleksandr | B49: 58
A50: Titarenko Boris | B50: 58
A51: Generalov Konstantin | B51: 57
A52: Berenbeyn Aleksandr | B52: 56
A53: Kharlov Evgeniy | B53: 56
A54: Bedzhanyan Levon | B54: 55
A55: Derbyshev Vyacheslav | B55: 55
A56: Kim Sergey | B56: 55
A57: Kirichenko Konstantin | B57: 54
A58: Shakirov Ayrat | B58: 54
A59: Zotov Anton | B59: 54
A60: Ananova Anna | B60: 53
A61: Agabaev Arslan | B61: 52
A62: Albitskiy Sergey | B62: 52
A63: Ershov Andrey | B63: 52
A64: Farafontov Aleksandr | B64: 52
A65: Nurmagomedov Magomed | B65: 51
A66: Ignatyev Aleksey | B66: 50
A67: Kydatov Lev | B67: 50
A68: Lyugai Boris | B68: 49
A69: Chvilev Aleksey | B69: 48
A70: Shumeyko Dmitriy | B70: 48
A71: Belikov Dmitriy | B71: 47
A72: Gubinov Anatoliy | B72: 47
A73: Kim Evgeniy | B73: 47
A74: Bezotosniy Viktor | B74: 46
A75: Yalovega Roman | B75: 46
A76: Bulatov Artem | B76: 45
A77: Tonkikh Vladislav | B77: 45
A78: Pollenskiy Dmitriy | B78: 44
A79: Shmagun Valentin | B79: 44
A80: Bayramov Azer | B80: 43
A81: Denisov Pavel | B81: 43
A82: Rybak Igor | B82: 43
A83: Vakhnenko Igor | B83: 43
A84: Kolendo Aleksandr | B84: 42
A85: Vopilov Nikolay | B85: 42
A86: Yaroshetskiy Aleksandr | B86: 42
A87: Chop Dmitriy | B87: 41
A88: Dorozhkin Sergey | B88: 41
A89: Golovchenko Vyacheslav | B89: 41
A90: Kiliushev Andrey | B90: 41
A91: Mityaev Ruslan | B91: 41
A92: Zakopaylo Vitaliy | B92: 41
A93: Fridman Ilia | B93: 40
A94: Kuznetsov Aleksandr | B94: 40
A95: Mramornov Aleksey | B95: 40
A96: Suprunov Andrey | B96: 39
A97: Domrachev Andrey | B97: 38
A98: Kosarev Andrey | B98: 38
A99: Muratov Rustem | B99: 38
A100: Rodin Sergey | B100: 38
A101: Sayko Vitaliy | B101: 38
A102: Berg Maksim | B102: 37
A103: Orlov Roman | B103: 36
A104: Otkosov Aleksandr | B104: 36
A105: Sereda Igor | B105: 36
A106: Shkradov Aleksandr | B106: 36
A107: Zlotnikov Anatoliy | B107: 36
A108: Demonov Sergey | B108: 35
A109: Kononikhin Mikhail | B109: 35
A110: Metelskiy Artem | B110: 34
A111: Tatsenko Vitaliy | B111: 34
A112: Davydov Armen | B112: 33
A113: Gromyshkov Aleksandr | B113: 33
A114: Kovanin Sergey | B114: 33
A115: Lukiyan Vadim | B115: 33
A116: Panfilov Iliya | B116: 33
A117: Kotelnikov Vasiliy | B117: 32
A118: Kozhevnikova Lidiya | B118: 32
A119: Safin Timur | B119: 32
A120: Shutkin Leonid | B120: 32
A121: Boyazitov Ramil | B121: 31
A122: Rasulov Arif | B122: 31
A123: Tyan Boris | B123: 31
A124: Ulmaskulov Igor | B124: 31
A125: Varentsov Vladimir | B125: 31
A126: Vlasova Violetta | B126: 31
A127: Dergachev Nikita | B127: 30
A128: Katymaev Evgeniy | B128: 30
A129: Adelberg Artur | B129: 29
A130: Davydov Aleksandr | B130: 29
A131: Firsov Sergey | B131: 29
A132: Mikhaylov Artur | B132: 29
A133: Novikov Nikolay | B133: 29
A134: Rafikov Adel | B134: 29
A135: Rozanov Sergei | B135: 29
A136: Nikanovich Mikalai | B136: 28
A137: Zakharov Igor | B137: 28
A138: Babushkin Nikolay | B138: 27
A139: Belyaeva Rimma | B139: 27
A140: Biriukov Aleksandr | B140: 27
A141: Mikitenko Vasiliy | B141: 27
A142: Puzanov Artem | B142: 27
A143: Tambovtsev Evgeniy | B143: 27
A144: Voznesenskiy Nikita | B144: 27
A145: Altynikov Roman | B145: 26
A146: Gritsenko Aleksey | B146: 26
A147: Kolosov Daniil | B147: 26
A148: Medvedev Sergey | B148: 26
A149: Salabaev Dmitriy | B149: 26
A150: Shkolnik Evgeniy | B150: 26
A151: Yakovenko Vasiliy | B151: 26
A152: Firsov Kirill | B152: 25
A153: Zamyatina Mikhail | B153: 25
A154: Bystrov Maksim | B154: 24
A155: Nikitin Sergey | B155: 24
A156: Ukalaev Emil | B156: 24
A157: Abishev Roman | B157: 23
A158: Agasarov Roman | B158: 23
A159: Fomenko Grigoriy | B159: 23
A160: Logay Viktor | B160: 23
A161: Zhiv Grigoriy | B161: 23
A162: Andreev Dmitriy | B162: 22
A163: Belinskiy Artem | B163: 22
A164: Borisov Nikolay | B164: 22
A165: Gavrilov Aleksandr | B165: 22
A166: Khaveev Sergey | B166: 22
A167: Kononenko Petr | B167: 22
A168: Nikiforov Anton | B168: 22
A169: Nuraev Roman | B169: 22
A170: Semenikhin Aleksey | B170: 22
A171: Shabalin Denis | B171: 22
A172: Trubitsyn Andrey | B172: 22
A173: Vlasov Aleksey | B173: 22
A174: Demenkov Vladimir | B174: 21
A175: Kopyl Dmitriy | B175: 21
A176: Krylov Nikolay | B176: 21
A177: Lifshits Aleksandr | B177: 21
A178: Lopushenko Sergey | B178: 21
A179: Mikhalin Nikita | B179: 21
A180: Pantiukhin Aleksandr | B180: 21
A181: Shakaryan Ernest | B181: 21
A182: Shalaumov Oleg | B182: 21
A183: Afanasyev Igor | B183: 20
A184: Bayandina Yulia | B184: 20
A185: Davydov Dmitriy | B185: 20
A186: Grigorov Evgeniy | B186: 20
A187: Kakadzhanov Timur | B187: 20
A188: Kaliankovich Siarhey | B188: 20
A189: Kalish Aleksandr | B189: 20
A190: Kazaryan Genry | B190: 20
A191: Kurochkin Anton | B191: 20
A192: Lezhnev Ilya | B192: 20
A193: Savitskiy Stanislav | B193: 20
A194: Zadumin Aleksandr | B194: 20
A195: Bovaev Elvig | B195: 19
A196: Dmitriyev Aleksandr | B196: 19
A197: Fedorov Aleksey | B197: 19
A198: Golovin Dmitriy | B198: 19
A199: Kashtanov Aleksey | B199: 19
A200: Kasumov Timur | B200: 19
... 959 more rows
